Cogmind - Beta 10.2 @@@ ROGUE MODE // 2021.06.29 @ 02:48:16 Player: Sebsebeleb Result: Destroyed by Y-45 Defender with Beam Rifle Performance ------------- Evolutions (2) 1000 Regions Visited (6) 1200 Robots Destroyed (52) 260 Value Destroyed (1477) 1477 Prototype IDs (8) 160 Alien Tech Used (0) 0 Bonus (434) 434 TOTAL SCORE: 4531 Bonus ------- Follower Combat Kills 134 Aligned with FarCom 300 Cogmind --------- Core Integrity 0/550 Matter 300/300 Energy 99/100 System Corruption 12% Temperature Cool (18) Movement Core (50) Location -8/Storage Parts ------- > --- POWER (1) -------- (None) > --- PROPULSION (4) --- (None) > --- UTILITY (4) ------ (None) > --- WEAPON (2) ------- (None) > --- INVENTORY (4) ---- Cooled Ion Engine Advanced Signal Interpreter Supersonic Drone Bay (0/1) Heavy Assault Rifle Peak State ------------ > --- POWER ------------ Light Angular Momentum Engine > --- PROPULSION ------- Carbon-fiber Leg Improved Carbon-fiber Leg > --- UTILITY ---------- Small Storage Unit Improved Medium Armor Plating Makeshift Hacking Suite Supersonic Drone Bay > --- WEAPON ----------- Beamcaster Bore Cannon > --- INVENTORY -------- Light Angular Momentum Engine Propulsion Shielding Improved EM Pulse Cannon Flail [Rating: 40] Favorites ----------- Power Light Nuclear Core Engine Light Angular Momentum Engine Power Core Light Nuclear Core Propulsion Aluminum Leg Treads Light Treads Leg Aluminum Leg Flight Unit Improved Flight Unit Utility Small Storage Unit Device Supersonic Drone Bay Storage Small Storage Unit Processor Signal Interpreter Hackware Makeshift Hacking Suite Protection Improved Medium Armor Plating Weapon Light Assault Rifle Energy Gun Particle Gun Energy Cannon Improved EM Pulse Cannon Ballistic Gun Light Assault Rifle Ballistic Cannon Bore Cannon Special Weapon Mining Laser Impact Weapon Flail Slashing Weapon Scythe Build | -11 -10 -10 -10 -9 -8 -8 ------- Run | Scr Mat Min Exi Min Mat Sto Slots Evolved 4 | . . . . . 4 . Power . | . . . . . . . Propulsion 2 | . . . . . 2 . Utility 2 | . . . . . 2 . Weapon . | . . . . . . . Parts Attached 96 | 8 12 8 8 11 19 30 Power 8 | 1 1 1 . 1 1 3 Engine 6 | 1 1 . . 1 1 2 Core 2 | . . 1 . . . 1 Reactor . | . . . . . . . Propulsion 24 | 3 2 3 2 3 3 8 Treads 8 | 1 . 1 . . 3 3 Leg 14 | 2 2 2 2 3 . 3 Wheel . | . . . . . . . Hover . | . . . . . . . Flight 2 | . . . . . . 2 Utility 19 | 2 1 . 2 2 4 8 Device 5 | 1 . . 2 . 1 1 Storage 4 | 1 . . . 1 1 1 Processor 1 | . 1 . . . . . Hackware 1 | . . . . . 1 . Protection 8 | . . . . 1 1 6 Artifact . | . . . . . . . Weapon 45 | 2 8 4 4 5 11 11 Energy Gun 16 | 2 5 1 1 1 5 1 Energy Cannon 4 | . . . 2 1 1 . Ballistic Gun 7 | . 1 3 1 1 . 1 Ballistic Cannon 8 | . . . . 2 1 5 Launcher . | . . . . . . . Special Weapon 2 | . 2 . . . . . Impact Weapon 3 | . . . . . 3 . Slashing Weapon 5 | . . . . . 1 4 Piercing Weapon . | . . . . . . . Special Melee Weapon . | . . . . . . . Unidentified Prototypes 6 | . . . 3 . . 3 Parts Lost 27 | . 6 2 . . 3 16 Power 2 | . . . . . 1 1 Propulsion 8 | . . 2 . . . 6 Utility 6 | . . . . . 1 5 Weapon 11 | . 6 . . . 1 4 Highest Loss Streak 11 | . 2 2 . . 2 11 Average Slot Usage (%) 94 | . 97 96 98 100 90 91 Engine 5 | . 14 4 . . 9 3 Core 6 | . . 9 14 13 . 4 Treads 7 | . . . . . 10 23 Leg 21 | . 28 27 28 28 18 8 Device 1 | . 2 . 4 . 1 2 Storage 13 | . 14 14 8 13 13 17 Processor 6 | . 11 14 14 6 . . Hackware 2 | . . . . . 9 2 Protection 6 | . . . . 7 10 11 Energy Gun 8 | . 22 8 13 3 8 . Energy Cannon 1 | . . . . 3 4 . Ballistic Gun 7 | . . 16 14 13 . 7 Ballistic Cannon 3 | . . . . 8 4 4 Naked Turns 21 | . . . . . . 21 Heaviest Build 51 | 12 15 13 13 34 38 51 Greatest Support 82 | 20 20 20 30 35 42 82 Greatest Overweight (x) 11 | 2 . . . 1 1 11 Average Overweight (x) . | . . . . . . . Largest Inventory Capacity 12 | 6 6 6 6 6 10 12 Average Capacity 7 | 5 6 6 5 5 7 11 Most Carried 12 | 6 6 6 6 6 10 12 Average Carried 6 | 4 5 5 5 5 7 9 Final Capacity 10 | 6 6 6 4 6 10 4 Final Carried 10 | 6 5 6 4 6 10 4 Class Distribution -------------------- 70% | Scavenger-Mutant 27% | Mutant Dominant Class ---------------- Mutant | -10/Materials Scavenger-Mutant | -10/Mines Scavenger-Mutant | -10/Exiles Mutant | -9/Mines Scavenger-Mutant | -8/Materials Scavenger-Mutant | -8/Storage Resources | -11 -10 -10 -10 -9 -8 -8 ----------- Run | Scr Mat Min Exi Min Mat Sto Matter Collected 1768 | 280 108 127 . 273 311 669 Remotely . | . . . . . . . Salvage Created 1865 | 142 361 174 . 127 409 652 Parts 109 | 14 26 12 . 10 18 29 Haulers Intercepted 3 | . 1 . . . 1 1 Recyclers Shooed 1 | 1 . . . . . . Parts Field Recycled . | . . . . . . . Retrieved Matter . | . . . . . . . Parts Self-Destructed . | . . . . . . . Prevented . | . . . . . . . Kills | -11 -10 -10 -10 -9 -8 -8 ------- Run | Scr Mat Min Exi Min Mat Sto Combat Hostiles Destroyed 40 | . 10 5 . 3 8 14 Melee 5 | . . . . . . 5 Guns 20 | . 10 5 . . 3 2 Cannons 13 | . . . . 3 3 7 AOE 2 | . . . . . 2 . Classes Destroyed 10 | 3 4 . . 1 1 1 Worker 4 | 2 . . . 2 . . Tunneler 2 | 2 . . . . . . Hauler 3 | . 1 . . . 1 1 Recycler 2 | 1 . 1 . . . . Watcher 1 | . 1 . . . . . Swarmer 11 | . 5 3 . . . 3 Grunt 21 | . 5 2 . 2 4 8 Brawler 2 | . . . . 1 . 1 Duelist 2 | . . . . . . 2 Sentry 4 | . . . . . 4 . Best Kill Streak 5 | 5 3 4 . 2 4 3 Combat Bots Only 4 | . 3 4 . 1 3 3 Max Kills in Single Turn 2 | 1 2 1 . 1 2 1 Gunslinging 1 | . 1 . . . . . Exploded 2 | . . . . . 2 . Melee 1 | . . . . . . 1 Uniques/NPCs Destroyed . | . . . . . . . Combat | -11 -10 -10 -10 -9 -8 -8 -------- Run | Scr Mat Min Exi Min Mat Sto Damage Taken 4868 | . 638 261 . 52 1024 2893 Core 674 | . 86 11 . 18 106 453 Absorbed by Shields . | . . . . . . . Core Remaining (%) 77 | 100 . . . 54 . . Volleys Fired 162 | 7 39 20 . 17 33 46 Largest 2 | 2 2 2 . 2 2 2 Hottest 200 | 90 200 85 . 89 134 134 Shots Fired 298 | 14 71 40 . 32 59 82 Gun 205 | 14 65 40 . 17 29 40 Cannon 87 | . . . . 15 30 42 Launcher . | . . . . . . . Special 6 | . 6 . . . . . Kinetic 149 | . 6 33 . 26 17 67 Thermal 117 | 7 65 7 . 2 29 7 Explosive . | . . . . . . . Electromagnetic 32 | 7 . . . 4 13 8 Robot Hit Streak 12 | 8 8 7 . 10 8 12 Robot Miss Streak 5 | 1 4 2 . 3 5 4 Penetration Max 2 | . . . . 2 . . Secondary Targets 5 | . 4 1 . . . . Max Gunslinging Chain 1 | . 1 1 . . . . Shots Hit Robots 188 | 8 36 27 . 17 40 60 Core Hits 83 | 6 17 10 . 9 13 28 Critical Hits 12 | . . . . 2 5 5 Critical Kills 7 | . . . . 2 1 4 Critical Parts Destroyed 5 | . . . . . 4 1 Melee Attacks 49 | . . . . . 13 36 Impact 10 | . . . . . 10 . Slashing 39 | . . . . . 3 36 Piercing . | . . . . . . . Sneak Attacks 1 | . . . . . . 1 Combat Hostiles . | . . . . . . . Follow-up Attacks . | . . . . . . . Damage Inflicted 3626 | 118 553 305 . 335 1170 1145 Guns 1680 | 118 481 305 . 64 353 359 Cannons 1036 | . . . . 268 340 428 Explosions 342 | . . . . . 342 . Melee 493 | . . . . . 135 358 Ramming 3 | . . . . 3 . . Kinetic 1273 | . 32 208 . 245 154 634 Thermal 1383 | 25 521 97 . . 695 45 Explosive . | . . . . . . . Electromagnetic 474 | 93 . . . 87 186 108 Impact 135 | . . . . . 135 . Slashing 358 | . . . . . . 358 Piercing . | . . . . . . . Highest Corruption 12 | . . . . . . 12 Average Corruption 12 | . . . . . . 12 Corruption Purged . | . . . . . . . Effects 45 | . . . . . . 45 Message Errors 11 | . . . . . . 11 Matter Fused 5 | . . . . . . 5 Heat Flow Errors 3 | . . . . . . 3 Energy Discharges 2 | . . . . . . 2 Parts Rejected 1 | . . . . . . 1 Data Loss (minor) 2 | . . . . . . 2 Data Loss (major) 1 | . . . . . . 1 Misfires 1 | . . . . . . 1 Alerts 1 | . . . . . . 1 Misdirections 3 | . . . . . . 3 Targeting Errors 15 | . . . . . . 15 Overload Shots . | . . . . . . . Overflow Damage 209 | . 8 . . 26 95 80 Projectiles 38 | . 8 . . 26 . 4 Explosions 95 | . . . . . 95 . Melee 76 | . . . . . . 76 Knockbacks 6 | . . . . 1 3 2 Impact 1 | . . . . . 1 . Kinetic 4 | . . . . 1 2 1 Secondary 1 | . . . . . . 1 Self-Inflicted Damage 163 | . . . . 1 162 . Shots 2 | . . . . . 2 . Rammed 1 | . . . . 1 . . Targets Rammed 1 | . . . . 1 . . Kicked . | . . . . . . . Crushed . | . . . . . . . Highest Temperature 357 | 120 354 222 . 150 357 355 Average Temperature 106 | 43 110 64 . 55 134 113 Received Heat Transfer 1776 | . 150 90 . 24 423 1089 Effects 6 | . 1 . . . 2 3 Energy Bleed 2 | . . . . . 2 . Interference 2 | . . . . . . 2 Matter Decay 1 | . . . . . . 1 Short Circuit 1 | . 1 . . . . . Siege Activations . | . . . . . . . Robots Corrupted . | . . . . . . . Combat Hostiles . | . . . . . . . Parts Fried 1 | . . . . . 1 . Impact Corruptions . | . . . . . . . Robots Melted . | . . . . . . . Combat Hostiles . | . . . . . . . Parts Melted 5 | . 3 . . . 2 . Heat Transferred 2644 | 74 1297 222 . . 940 111 Parts Sabotaged . | . . . . . . . Parts Stolen . | . . . . . . . Parts Stripped . | . . . . . . . Power Chain Reactions . | . . . . . . . Missiles Intercepted . | . . . . . . . Alert | -11 -10 -10 -10 -9 -8 -8 ------- Run | Scr Mat Min Exi Min Mat Sto Peak Influence 264 | 25 245 143 . 80 207 264 Initial 31 | . 16 28 . . 31 . Average 74 | 4 100 58 . 15 81 113 Maximum Alert Level 1 | . 1 . . . 1 1 Low Security (%) 95 | 100 87 100 . 100 96 93 Level 1 4 | . 12 . . . 3 6 Level 2 . | . . . . . . . Level 3 . | . . . . . . . Level 4 . | . . . . . . . Level 5 . | . . . . . . . High Security . | . . . . . . . Max Security . | . . . . . . . Squads Dispatched 10 | . 1 . . 1 2 6 Investigation 5 | . 1 . . 1 . 3 Extermination . | . . . . . . . Reinforcement 3 | . . . . . 2 1 Assault 2 | . . . . . . 2 Garrison . | . . . . . . . Intercept . | . . . . . . . Construction Impeded . | . . . . . . . Haulers Reinforced . | . . . . . . . Stealth | -11 -10 -10 -10 -9 -8 -8 --------- Run | Scr Mat Min Exi Min Mat Sto Distress Signals 4 | . . . . . . 4 Communications Jammed . | . . . . . . . Distress Signals . | . . . . . . . Times Spotted 70 | . 14 9 . 3 11 33 Peak Tracking Total 14 | . 4 4 . 3 2 14 Tactical Retreats 3 | . . 1 . . 1 1 Traps | -11 -10 -10 -10 -9 -8 -8 ------- Run | Scr Mat Min Exi Min Mat Sto Traps Triggered 3 | . 3 . . . . . Indirectly . | . . . . . . . Trap Hack Attempts . | . . . . . . . Triggered . | . . . . . . . Disarmed . | . . . . . . . Reprogrammed . | . . . . . . . Reused . | . . . . . . . Traps Extracted . | . . . . . . . Installed . | . . . . . . . Triggered . | . . . . . . . Machines | -11 -10 -10 -10 -9 -8 -8 ---------- Run | Scr Mat Min Exi Min Mat Sto Machines Disabled 7 | . 2 . . . 2 3 Max in Single Turn 2 | . 2 . . . 2 1 Machines Sabotaged . | . . . . . . . Garrisons Compromised . | . . . . . . . Overloaded Fab Kills . | . . . . . . . Fab Network Shutdowns . | . . . . . . . Hacking | -11 -10 -10 -10 -9 -8 -8 --------- Run | Scr Mat Min Exi Min Mat Sto Machines Accessed 10 | . 1 . . 1 3 5 Terminals 7 | . . . . . 3 4 Fabricators . | . . . . . . . Repair Stations . | . . . . . . . Recycling Units 2 | . 1 . . . . 1 Scanalyzers . | . . . . . . . Garrison Access . | . . . . . . . Total Hacks 23 | . 1 . . 1 9 12 Successful 9 | . 1 . . 1 6 1 Failed 14 | . . . . . 3 11 Catastrophic 4 | . . . . . 2 2 Database Lockouts . | . . . . . . . Manual 14 | . 1 . 1 . 7 5 Terminals 20 | . . . . . 9 11 Fabricators . | . . . . . . . Repair Stations . | . . . . . . . Recycling Units 2 | . 1 . . . . 1 Scanalyzers . | . . . . . . . Garrison Access . | . . . . . . . Terminal Hacks 7 | . . . . 1 6 . Prototype ID Bank 1 | . . . . . 1 . Open Door 1 | . . . . 1 . . Branch Access Points 1 | . . . . . 1 . Recycling Unit Index 1 | . . . . . 1 . Alert Level 2 | . . . . . 2 . Unreport Threat 1 | . . . . . 1 . Fabricator Hacks . | . . . . . . . Repair Station Hacks . | . . . . . . . Recycling Unit Hacks 1 | . . . . . . 1 Report Inventory 1 | . . . . . . 1 Scanalyzer . | . . . . . . . Garrison Access Hacks . | . . . . . . . Unauthorized Hacks 1 | . 1 . . . . . Terminals . | . . . . . . . Fabricators . | . . . . . . . Repair Stations . | . . . . . . . Recycling Units 1 | . 1 . . . . . Tunnel 1 | . 1 . . . . . Scanalyzers . | . . . . . . . Garrison Access . | . . . . . . . Data Cores Recovered . | . . . . . . . Used . | . . . . . . . Hacking Detections 7 | . . . . . 3 4 Full Trace Events 3 | . . . . . . 3 Feedback Events . | . . . . . . . Feedback Blocked . | . . . . . . . Robot Schematics Acquired . | . . . . . . . Robots Built . | . . . . . . . Matter . | . . . . . . . Time . | . . . . . . . Total Robot Build Rating . | . . . . . . . Part Schematics Acquired . | . . . . . . . Parts Built . | . . . . . . . Matter . | . . . . . . . Time . | . . . . . . . Total Part Build Rating . | . . . . . . . Parts Repaired . | . . . . . . . Time . | . . . . . . . Parts Recycled . | . . . . . . . Recycled Matter . | . . . . . . . Retrieved Matter . | . . . . . . . Retrieved Components . | . . . . . . . Parts Scanalyzed . | . . . . . . . Part Schematics Acquired . | . . . . . . . Parts Damaged . | . . . . . . . Bothacking | -11 -10 -10 -10 -9 -8 -8 ------------ Run | Scr Mat Min Exi Min Mat Sto Used RIF Installer . | . . . . . . . Robots Hacked . | . . . . . . . Non-combat . | . . . . . . . Combat . | . . . . . . . Robot Hacks Applied . | . . . . . . . Relay Couplers Released . | . . . . . . . Robots Rewired . | . . . . . . . Allies Hacked . | . . . . . . . Hacks Repelled . | . . . . . . . Allies | -11 -10 -10 -10 -9 -8 -8 -------- Run | Scr Mat Min Exi Min Mat Sto Total Allies 12 | . . . . . . 12 Largest Group 10 | . . . . . . 10 Highest-Rated Group 173 | . . . . . . 173 Highest-Rated Ally 31 | . . . . . . 31 Total Orders 6 | . . . . 2 3 1 ROAM 1 | . . . . . . 1 EXPLORE 4 | . . . . 1 3 . RETURN 1 | . . . . 1 . . Ally Attacks 68 | . . . . . . 68 Total Damage 903 | . . . . . . 903 Kills 10 | . . . . . . 10 Allies Corrupted . | . . . . . . . Allies Melted . | . . . . . . . Intel | -11 -10 -10 -10 -9 -8 -8 ------- Run | Scr Mat Min Exi Min Mat Sto Robot Analysis Total . | . . . . . . . Derelict Logs Recovered 4 | . . 2 . 2 . . Drone Launches 4 | . . . . 1 3 . Drone Recoveries 3 | . . . . 1 2 . Exploration | -11 -10 -10 -10 -9 -8 -8 ------------- Run | Scr Mat Min Exi Min Mat Sto Turns Passed 3729 | 118 496 585 356 557 804 813 Spaces Moved 1940 | 58 279 356 283 343 292 329 Core 53 | 9 . . . . . 44 Treads 453 | 5 . 3 . . 199 246 Legs 1434 | 44 279 353 283 343 93 39 Wheels . | . . . . . . . Hover . | . . . . . . . Flight . | . . . . . . . Fastest Speed 50 | 50 120 120 120 120 120 50 Average Speed 131 | 137 120 120 120 122 151 152 Slowest Speed 600 | 160 120 160 120 150 160 600 Overloaded Moves . | . . . . . . . Propulsion Burnouts . | . . . . . . . Robots Hopped . | . . . . . . . Cave-ins Triggered 1 | . . . . . . 1 Exploration Rate (%) 49 | 4 38 79 62 98 23 43 Regions Visited 6 Branch Regions 4 Pre-discovered Areas 3 | . 1 . . 1 . 1 Known Exits Taken 4 | . 1 1 1 . 1 . Unknown Exits Taken 2 | 1 . . . 1 . . Scrap Searched 3 | . . 2 . 1 . . Spaces Dug 29 | . 2 . . . 5 22 Terrain Destroyed 126 | . 20 . . 4 68 34 Melee 27 | . . . . . 5 22 Projectile 33 | . 2 . . 4 15 12 AOE 66 | . 18 . . . 48 . Terrain Rammed . | . . . . . . . Walls Destroyed . | . . . . . . . Machines Disabled . | . . . . . . . Actions | -11 -10 -10 -10 -9 -8 -8 --------- Run | Scr Mat Min Exi Min Mat Sto Total 2759 | 79 364 478 302 451 571 514 Wait 409 | 1 13 78 . 70 202 45 Move 1934 | 57 278 355 282 342 291 329 Hop . | . . . . . . . Pick Up 45 | 5 9 8 1 2 9 11 Fast Attach 39 | 8 4 4 6 6 4 7 Attach 24 | . 2 3 . . 4 15 Detach 9 | 1 . 1 . 1 1 5 Swap 33 | . 6 1 2 5 11 8 Drop 53 | . 13 8 11 7 3 11 Fire 162 | 7 39 20 . 17 33 46 Melee 49 | . . . . . 13 36 Ram 1 | . . . . . . 1 Kick 1 | . . . . 1 . . Crush . | . . . . . . . Escape Stasis . | . . . . . . . Rewire . | . . . . . . . Trap . | . . . . . . . Miscellaneous . | . . . . . . . Route ------- -11/Scrapyard -10/Materials -10/Mines (discovered 2 exits: *Mat / *Exi) -10/Exiles (discovered 2 exits: *Min x2) -9/Mines (discovered 2 exits: *Mat x2) -8/Materials (discovered 2 exits: *Sto x2) -8/Storage History --------- Turn | Location | Event 6 | -11/Scrapyard | Discovered new exit (range 15) 119 | -11/Scrapyard | Entered Materials 309 | -10/Materials | Build established: Mutant 510 | -10/Materials | Discovered new exit (range 6) 518 | -10/Materials | Identified exit to Mines 615 | -10/Materials | Entered Mines 666 | -10/Mines | Received a Rocket Launcher from a helpful Derelict 682 | -10/Mines | Discovered new exit (range 5) 686 | -10/Mines | Identified exit to Materials 884 | -10/Mines | Build established: Scavenger-Mutant 902 | -10/Mines | Learned 2 Materials zone layouts 942 | -10/Mines | Learned 2 Materials zone layouts 944 | -10/Mines | Joined a pair of Derelicts in attacking an 0b10 outpost 1177 | -10/Mines | A weapon hastily lodged in a ceiling crevice suddenly fell to the ground 1194 | -10/Mines | Deemed a non-threat by the Exiles lab entrance 1195 | -10/Mines | Discovered new exit (range 5) 1198 | -10/Mines | Identified exit to Exiles 1200 | -10/Mines | Entered Exiles 1220 | -10/Exiles | Discovered new exit (range 15) 1235 | -10/Exiles | Identified exit to Mines 1264 | -10/Exiles | Met 8R-AWN 1282 | -10/Exiles | Met EX-HEX 1319 | -10/Exiles | Met EX-BIN 1336 | -10/Exiles | Aligned with FarCom system 1337 | -10/Exiles | Given EX-Vault access code 1396 | -10/Exiles | Opened EX-Vault 1417 | -10/Exiles | Found Prototype Device 1417 | -10/Exiles | Identified Supersonic Drone Bay 1421 | -10/Exiles | Found Prototype Energy Cannon 1421 | -10/Exiles | Identified Latent Energy Streamer 1425 | -10/Exiles | Found Prototype Energy Cannon 1425 | -10/Exiles | Identified YOLO Cannon 1463 | -10/Exiles | Exiles lab attacked by MAIN.C 1547 | -10/Exiles | Discovered exit to Mines (range 10) 1556 | -10/Exiles | Left Exiles lab with Supersonic Drone Bay 1556 | -10/Exiles | Entered Mines 1563 | -9/Mines | Discovered new exit (range 27) 1564 | -9/Mines | Discovered new exit (range 9) 1610 | -9/Mines | Met a Derelict bent on vengeance 1790 | -9/Mines | Met a Derelict shopkeep closing up shop 1792 | -9/Mines | Learned location of Recycling (-8) 1984 | -9/Mines | Learned Materials stockpile data 2024 | -9/Mines | Found a hidden stash of uninstalled traps 2093 | -9/Mines | Build established: Mutant 2113 | -9/Mines | Entered Materials 2113 | -8/Materials | Evolved 4 slots: Propulsion x2, Utility x2 2402 | -8/Materials | Build established: Scavenger-Mutant 2680 | -8/Materials | Identified exit to Storage 2917 | -8/Materials | Entered Storage 3103 | -8/Storage | Crushed by falling debris 3103 | -8/Storage | System corruption reached 10% 3134 | -8/Storage | Lost 3 parts (1p1n1u) 3224 | -8/Storage | Assisted by bots powering up and referring to "LRC-V3" 3289 | -8/Storage | Learned location of Armory (-3) 3550 | -8/Storage | Met a pair of Derelict thieves 3683 | -8/Storage | Core integrity fell below 50% 3709 | -8/Storage | Core integrity fell below 20% 3709 | -8/Storage | Released all parts (6) 3726 | -8/Storage | Lost 11 parts (5n3u3w) 3730 | -8/Storage | Destroyed by Y-45 Defender with Beam Rifle Last Messages --------------- 03684_ IIBV>AW8Q,HQE35CWCZZ3:RNLRE36M LRHMV8AS 03687_ HV Slug penetrates Storage Shell. 03689_ Bore Cannon destroyed. 03691_ Hrd. Medium Armor Plating destroyed. 03695_ System corrupted: Autogun targeting data glitched. 03695_ Autogun destroyed. 03699_ System corrupted: Scythe targeting data glitched. 03699_ L-31 Rogue destroyed. 03701_ G-50 Soldier suffers critical hit. 03701_ G-50 Soldier destroyed. 03704_ VH/HQY/FJ>423HHYNMTUEORW,A:EHLB 03704_ G-47 Trooper destroyed. 03709_ Released Med. Storage Unit. 03709_ Released Hvy. Ion Engine. 03709_ Released Imp. Flight Unit. 03709_ Released Propulsion Shielding. 03709_ Released Scythe. 03716_ R-06 Scavenger collects Lgt. Nuclear Core. 03718_ Acquired 39 matter. 03719_ Acquired 17 matter. Map ----- +----------------------------------------------------+ | | | | | | | | | | | | | | | | | | | ?????????????????????????????????????????????????? | | ?????????????????????????????????????????????????? | | ???##????###?????????????????????????????????????? | | ???# #####T###???????????????????????????????????? | | ???# #???????????????????????????????????? | | #### ] ###?????????????????????????????????? | | # ! ""#?????????????????????????????????? | | #= [=! T"#?????????????????????????????????? | | + = """" ""#????????###??????????????????????? | | #[ """"" ###????????] ]??????????????????????? | | ## """"" #??????????] ]??????????????????????? | | ## #??????????] ]???????????????Y??????? | | ####+#######??????????] ]??????????????????????? | | ^ #??????????????##" "#?????????????????????? | | ^ =#??????????????#T #?????????????????????? | | #####%[#???????????????# #?????????????????????? | | ????# %##################@###????????????????????? | | ????#*[g%%%=[ ## ######+??????????????? | | ????#%g#!%*! * !## ??????????? | | ????#%%#%%*% %= !+ kY ?????????? | | ????#%%#*=% = ## gg ??????????? | | ????#% # ## ####/######??????????? | | ????# g# = ########???? g??????????????? | | ????# ###############????????????" ?????????????? | | ???## ##??????????????????????????? ???????????? | | #### #???????????????????????????? ???????????? | | % % #????????????????????????????????????????? | | % #????????????????????????????????????????? | | ### #????????????????????????????????????????? | | ####/#####????????Y?????????????????????????????? | | # #??????????????????????????????????????? | | # #??????????????????????????????????????? | | + ""["=* #??????????????????????????????????????? | | # "|!%"! #??????????????????????????????????????? | | # =!!%%" #??????????????????????????????????????? | | # [""[=" #??????????????????????????????????????? | | # ""*!!*#??????????????????????????????????????? | | # """*!#??????????????????????????????????????? | | + / #??????????????????????????????????????? | | ##+########??????????????????????????????????????? | | ?# #???????????????????????????????????????????? | +----------------------------------------------------+ Best States ------------- Heat Dissipation 45 Energy Generation 18 Energy Capacity 280 Matter Stores 300 Matter Capacity 300 Sight Range 16 Terrain Scan Range 16 Terrain Scan Density 10 Armor Coverage 450 Propulsion Shielding 33 Evasion (%) 50 Recoil Reduction 4 Offensive Hacking 11 Item Schematics ----------------- None Robot Schematics ------------------ None Fabricated ------------ Nothing Alien Tech Used ----------------- None Achievements -------------- None Challenges ------------ None Game ------ Seed AnalysisInsulationCompactor Manual? 0 Play Time 00:59:41 Cumulative 33.3 hours Start 2021.06.28 @ 02:29:52 End 2021.06.29 @ 02:48:16 Sessions 2 Manual Loads 0 Difficulty Rogue Special Mode None Game No. 18 Rogue 18 Adventurer 0 Explorer 0 Win Type - Total 0 Types 0/0/0/0/0/0/0/0/0 Lore% 23 Gallery% 36 Achievement% 23 Wizard Run 0 Options --------- ASCII 0 Keyboard 0 Movement Numpad Keybinds 0 Fullscreen 1 Font 18/X11Bold Map View 76x50 Tactical HUD 1 Map Filters NONE Filters NONE Steam 1 RUN: 85405440-be9a-4154-a9fd-3bacb1dd2a16